{"text_format":"1","workbook":"xlsx","n_sheets":2,"sheets":["Cover Sheet","Solid Slab Analysis"],"not_rendered":{"charts":1,"images":0,"macros":1,"external_links":0,"defined_names":1,"comments":0,"pivot_tables":0},"unopened":[],"bounds":{"document_bytes":16777216,"sheet_cells":100000,"rows_first":2000,"rows_last":500,"rows_between":2000,"halvings":0,"cell_chars":16384,"cell_head_chars":4096},"cells_cut":0,"cells_raw":0,"read":"whole","date_system":"1900"}

{"sheet":"Cover Sheet","index":0,"n_rows":35,"n_cols":32,"rows_kept":35,"cut":false,"hidden":false,"merged":[[39,7,39,8],[39,9,39,24],[39,25,39,29],[37,7,37,8],[37,9,37,24],[37,25,37,29],[38,7,38,8],[38,9,38,24],[38,25,38,29],[35,7,35,8],[35,9,35,24],[35,25,35,29],[36,7,36,8],[36,9,36,24],[36,25,36,29],[4,31,4,35],[34,7,34,8],[34,9,34,24],[34,25,34,29],[6,7,11,29],[13,7,15,29],[17,7,17,29],[19,7,20,29],[22,7,22,12],[23,7,23,29],[25,7,26,29],[28,7,28,23],[33,7,33,8],[33,9,33,24],[33,25,33,29],[0,1,0,5],[0,6,0,30],[0,31,0,35],[1,1,4,5],[1,6,1,11],[1,12,1,30],[1,31,1,35],[2,6,2,11],[2,12,2,30],[2,31,2,35],[3,6,3,30],[3,31,3,35],[4,6,4,11],[4,12,4,18],[4,19,4,24],[4,25,4,30]]}
[null,"Registered User:",null,null,null,null,"Free Trial Version - Not For Commercial Use",null,null,null,null,null,null,null,null,null,null,null,null,null,null,null,null,null,null,null,null,null,null,null,null,"© 2017 CivilWeb"]
[null,"Your Logo / Company Details Here",null,null,null,null,"Project:",null,null,null,null,null,null,null,null,null,null,null,null,null,null,null,null,null,null,null,null,null,null,null,null,"By:"]
[null,null,null,null,null,null,"Calculation:",null,null,null,null,null,"Solid Slab Anaysis"]
[null,null,null,null,null,null,null,null,null,null,null,null,null,null,null,null,null,null,null,null,null,null,null,null,null,null,null,null,null,null,null,"Approved:"]
[null,null,null,null,null,null,"Sheet Number:",null,null,null,null,null,"Cover Sheet",null,null,null,null,null,null,"Date:"]
[]
[null,null,null,null,null,null,null,"Although all care and attention has been taken to ensure that this program is accurate, CivilWeb gives no guarentee that it is error free. In no event will Civil Web accept any responsibility for any errors or omissions from the program or from the user of the program, or for any special, incedental or consequential damages whatsoever arising from use of this program."]
[]
[]
[]
[]
[]
[]
[null,null,null,null,null,null,null,"This program should only be used by a suitably qualified Civil or Structural Engineer, and suitable efforts should be taken to verify the results."]
[]
[]
[]
[null,null,null,null,null,null,null,"Reverse-engineering or decompiling of this program is not allowed."]
[]
[null,null,null,null,null,null,null,"This program is registered to a single user, and should not be used by any other."]
[]
[]
[null,null,null,null,null,null,null,"Registered User;"]
[null,null,null,null,null,null,null,"Free Trial Version"]
[]
[null,null,null,null,null,null,null,"By using this program you confirm your understanding and agreement with the above terms and conditions."]
[]
[]
[null,null,null,null,null,null,null,"This program remains the property of CivilWeb."]
[null,null,null,null,null,null,null,"www.civilweb-spreadsheets.com"]
[]
[null,null,null,null,null,null,null,"Revision Schedule"]
[]
[null,null,null,null,null,null,null,"Rev",null,"Changes",null,null,null,null,null,null,null,null,null,null,null,null,null,null,null,"Date"]
[null,null,null,null,null,null,null,0,null,"Original",null,null,null,null,null,null,null,null,null,null,null,null,null,null,null,"2017-06-01"]

{"sheet":"Solid Slab Analysis","index":1,"n_rows":122,"n_cols":113,"rows_kept":122,"cut":false,"hidden":false,"merged":[[0,1,0,5],[0,6,0,30],[0,31,0,35],[45,7,45,26],[48,7,48,28],[46,7,46,8],[47,7,47,8],[46,9,46,11],[46,12,46,14],[47,9,47,11],[47,12,47,14],[11,6,11,9],[12,6,12,9],[7,10,7,13],[8,10,8,13],[9,10,9,15],[49,7,49,8],[49,9,49,11],[49,12,49,14],[50,7,50,8],[50,9,50,11],[50,12,50,14],[11,10,11,15],[12,10,12,15],[9,28,9,30],[10,28,10,30],[9,17,9,24],[10,17,10,24],[12,17,12,20],[12,21,12,30],[9,25,9,27],[10,25,10,27],[8,14,8,15],[6,6,6,15],[7,6,7,9],[8,6,8,9],[9,6,9,9],[10,6,10,9],[10,10,10,15],[1,1,4,5],[1,6,1,11],[1,12,1,30],[7,17,7,24],[8,17,8,24],[7,28,7,30],[8,28,8,30],[7,25,7,27],[8,25,8,27],[1,31,1,35],[2,6,2,11],[2,12,2,30],[6,17,6,30],[7,14,7,15],[2,31,2,35],[3,6,3,30],[3,31,3,35],[4,6,4,11],[4,12,4,18],[4,19,4,24],[4,25,4,30],[4,31,4,35],[34,7,34,8],[35,7,35,8],[34,12,34,14],[31,7,31,10],[35,12,35,14],[34,9,34,11],[35,9,35,11],[33,7,33,20],[40,7,40,23],[36,7,36,20],[37,7,37,8],[37,9,37,11],[37,12,37,14],[38,7,38,8],[38,9,38,11],[38,12,38,14],[43,7,43,8],[43,9,43,11],[43,12,43,14],[41,16,41,23],[41,7,41,14],[42,16,42,17],[42,18,42,20],[42,21,42,23],[43,16,43,17],[43,18,43,20],[43,21,43,23],[42,7,42,8],[42,9,42,11],[42,12,42,14]]}
[null,"Registered User:",null,null,null,null,"Free Trial Version - Not For Commercial Use",null,null,null,null,null,null,null,null,null,null,null,null,null,null,null,null,null,null,null,null,null,null,null,null,"© 2017 CivilWeb"]
[null,"Your Logo / Company Details Here",null,null,null,null,"Project:",null,null,null,null,null,null,null,null,null,null,null,null,null,null,null,null,null,null,null,null,null,null,null,null,"By:",null,null,null,null,null,null,null,null,null,null,null,null,null,null,null,null,null,null,null,null,null,null,null,null,null,null,null,null,null,null,null,null,null,null,null,null,null,null,null,null,null,null,null,null,null,null,null,null,null,null,null,null,null,null,null,null,null,"slabdims",null,null,null,null,null,"Continuous"]
[null,null,null,null,null,null,"Calculation:",null,null,null,null,null,"Solid Slab Analysis",null,null,null,null,null,null,null,null,null,null,null,null,null,null,null,null,null,null,null,null,null,null,null,null,null,null,null,null,null,null,null,null,null,null,null,null,null,null,null,null,null,null,null,null,null,null,null,null,null,null,null,null,null,null,null,null,null,null,null,null,null,null,null,null,null,null,null,null,null,null,null,null,null,null,null,null,"lx",null,"mm",null,null,null,"Discontinuous"]
[null,null,null,null,null,null,null,null,null,null,null,null,null,null,null,null,null,null,null,null,null,null,null,null,null,null,null,null,null,null,null,"Approved:",null,null,null,null,null,null,null,null,null,null,null,null,null,null,null,null,null,null,null,null,null,null,null,null,null,null,null,null,null,null,null,null,null,null,null,null,null,null,null,null,null,null,null,null,null,null,null,null,null,null,null,null,null,null,null,null,null,"ly",null,"mm","largrsid",null,null,null,null,null,"sharforc"]
[null,null,null,null,null,null,"Sheet Number:",null,null,null,null,null,1,null,null,null,null,null,null,"Date:",null,null,null,null,null,null,null,null,null,null,null,null,null,null,null,null,null,null,null,null,null,null,null,null,null,null,null,null,null,null,null,null,null,null,null,null,null,null,null,null,null,null,null,null,null,null,null,null,null,null,null,null,null,null,null,null,null,null,null,null,null,null,null,null,null,null,null,null,null,null,null,null,null,null,null,"Simply Supported",null,null,1,2,null,3,null,4,null,5,null,6,null,7,null,8]
[null,null,null,null,null,null,null,null,null,null,null,null,null,null,null,null,null,null,null,null,null,null,null,null,null,null,null,null,null,null,null,null,null,null,null,null,null,null,null,null,null,null,null,null,null,null,null,null,null,null,null,null,null,null,null,null,null,null,null,null,null,null,null,null,null,null,null,null,null,null,null,null,null,null,null,null,null,null,null,null,null,null,null,null,null,null,null,null,null,"edge x1",null,null,null,null,null,"Restrained",null,null,"All 4 edges continuous","1 short edge discount.",null,"1 long edge discont.",null,"2 adjascent edges discont.",null,"2 short edges discont.",null,"2 long edges discont.",null,"3 edges discont. (1 long edge cont.)",null,"3 edges discont. (1 short edge cont.)"]
[null,null,null,null,null,null,"Slab Details",null,null,null,null,null,null,null,null,null,null,"Loading Details",null,null,null,null,null,null,null,null,null,null,null,null,null,null,null,null,null,null,null,null,null,null,null,null,null,null,null,null,null,null,null,null,null,null,null,null,null,null,null,null,null,null,null,null,null,null,null,null,null,null,null,null,null,null,null,null,null,null,null,null,null,null,null,null,null,0,0,null,null,null,null,"edge x2",null,null,null,null,null,null,null,null,"Continuous edge","Continuous edge",null,"Continuous edge",null,"Continuous edge",null,"Continuous edge",null,"Continuous edge",null,"Continuous edge",null,"Continuous edge"]
[null,null,null,null,null,null,"Width X",null,null,null,5000,null,null,null,"mm",null,null,"Total UDL (Dead)",null,null,null,null,null,null,null,25,null,null,"kN/m²",null,null,null,null,null,null,null,null,null,null,null,null,null,null,null,null,null,null,null,null,null,null,null,null,null,null,null,null,null,null,null,null,null,null,null,null,null,null,null,null,null,null,null,null,null,null,null,null,null,null,null,null,null,null,{"$f":"K8","v":5000},{"$f":"CG7","v":0},null,null,null,null,"edge y1",null,null,null,null,null,null,null,1,0.33,0.36,null,0.36,null,0.4,null,0.4,null,0,null,0.45,null,0]
[null,null,null,null,null,null,"Length Y",null,null,null,6000,null,null,null,"mm",null,null,"Total UDL (Imposed)",null,null,null,null,null,null,null,35,null,null,"kN/m²",null,null,null,null,null,null,null,null,null,null,null,null,null,null,null,null,null,null,null,null,null,null,null,null,null,null,null,null,null,null,null,null,null,null,null,null,null,null,null,null,null,null,null,null,null,null,null,null,null,null,null,null,null,null,{"$f":"CF8","v":5000},{"$f":"K9","v":6000},null,null,null,null,"edge y2",null,null,null,null,null,null,null,1.1000000000000001,0.36,0.39,null,0.4,null,0.44,null,0.43,null,0,null,0.48,null,0]
[null,null,null,null,null,null,"X1",null,null,null,"Discontinuous",null,null,null,null,null,null,"Factor of Safety Gk",null,null,null,null,null,null,null,1.4,null,null,null,null,null,null,null,null,null,null,null,null,null,null,null,null,null,null,null,null,null,null,null,null,null,null,null,null,null,null,null,null,null,null,null,null,null,null,null,null,null,null,null,null,null,null,null,null,null,null,null,null,null,null,null,null,null,{"$f":"CF7","v":0},{"$f":"CG9","v":6000},null,null,null,null,null,null,null,null,null,null,null,null,1.2,0.39,0.42,null,0.44,null,0.47,null,0.45,null,0,null,0.51,null,0]
[null,null,null,null,null,null,"X2",null,null,null,"Continuous",null,null,null,null,null,null,"Factor of Safety Qk",null,null,null,null,null,null,null,1.6,null,null,null,null,null,null,null,null,null,null,null,null,null,null,null,null,null,null,null,null,null,null,null,null,null,null,null,null,null,null,null,null,null,null,null,null,null,null,null,null,null,null,null,null,null,null,null,null,null,null,null,null,null,null,null,null,null,{"$f":"CF7","v":0},{"$f":"CG7","v":0},null,null,null,null,null,null,null,null,null,null,null,null,1.3,0.41,0.44,null,0.47,null,0.5,null,0.47,null,0,null,0.53,null,0]
[null,null,null,null,null,null,"Y1",null,null,null,"Continuous",null,null,null,null,null,null,null,null,null,null,null,null,null,null,null,null,null,null,null,null,null,null,null,null,null,null,null,null,null,null,null,null,null,null,null,null,null,null,null,null,null,null,null,null,null,null,null,null,null,null,null,null,null,null,null,null,null,null,null,null,null,null,null,null,null,null,null,null,null,null,null,null,null,null,null,null,null,null,null,null,null,null,null,null,null,null,1.4,0.43,0.45,null,0.49,null,0.52,null,0.48,null,0,null,0.55000000000000004,null,0]
[null,null,null,null,null,null,"Y2",null,null,null,"Discontinuous",null,null,null,null,null,null,"Slab Type",null,null,null,"Restrained",null,null,null,null,null,null,null,null,null,null,null,null,null,null,null,null,null,null,null,null,null,null,null,null,null,null,null,null,null,null,null,null,null,null,null,null,null,null,null,null,null,null,null,null,null,null,null,null,null,null,null,null,null,null,null,null,null,null,null,null,null,{"$f":"((10000-MAX($CF$7:$CF$11))/2)+CF7","v":2500},{"$f":"((10000-MAX($CG$7:$CG$11))/2)+CG7","v":2000},null,null,null,null,null,null,null,null,null,null,null,null,1.5,0.45,0.47,null,0.51,null,0.54,null,0.49,null,0,null,0.56999999999999995,null,0]
[null,null,null,null,null,null,null,null,null,null,null,null,null,null,null,null,null,null,null,null,null,null,null,null,null,null,null,null,null,null,null,null,null,null,null,null,null,null,null,null,null,null,null,null,null,null,null,null,null,null,null,null,null,null,null,null,null,null,null,null,null,null,null,null,null,null,null,null,null,null,null,null,null,null,null,null,null,null,null,null,null,null,null,{"$f":"((10000-MAX($CF$7:$CF$11))/2)+CF8","v":7500},{"$f":"((10000-MAX($CG$7:$CG$11))/2)+CG8","v":2000},null,null,null,null,null,null,null,null,null,null,null,null,1.75,0.48,0.5,null,0.55000000000000004,null,0.56999999999999995,null,0.52,null,null,null,0.6]
[null,null,null,null,null,null,null,null,null,null,null,null,null,null,null,null,null,null,null,null,null,null,null,null,null,null,null,null,null,null,null,null,null,null,null,null,null,null,null,null,null,null,null,null,null,null,null,null,null,null,null,null,null,null,null,null,null,null,null,null,null,null,null,null,null,null,null,null,null,null,null,null,null,null,null,null,null,null,null,null,null,null,null,7500,8000,null,null,null,null,null,null,null,null,null,null,null,null,2,0.5,0.52,null,0.59,null,0.6,null,0.54,null,0,null,0.63,null,0]
[null,null,null,null,null,null,null,null,null,null,null,null,null,null,null,null,null,null,null,null,null,null,null,null,null,null,null,null,null,null,null,null,null,null,null,null,null,null,null,null,null,null,null,null,null,null,null,null,null,null,null,null,null,null,null,null,null,null,null,null,null,null,null,null,null,null,null,null,null,null,null,null,null,null,null,null,null,null,null,null,null,null,null,2500,8000,null,null,null,null,"Typ","SimplySupportd","justsimplysupportdifchckd",null,null,null,null,null,"Bvy",0.33,0.36,null,0.36,null,0.4,null,0,null,0.4,null,0,null,0.45]
[null,null,null,null,null,null,null,null,null,null,null,null,null,null,null,null,null,null,null,null,null,null,null,null,null,null,null,null,null,null,null,null,null,null,null,null,null,null,null,null,null,null,null,null,null,null,null,null,null,null,null,null,null,null,null,null,null,null,null,null,null,null,null,null,null,null,null,null,null,null,null,null,null,null,null,null,null,null,null,null,null,null,null,2500,2000,null,null,null,null,null,null,null,null,null,"ly/lx",{"$f":"MAX(K8:N9)/MIN(K8:N9)","v":1.2},null,null,1,2,null,3,null,4,null,5,null,6,null,7,null,8,9]
[null,null,null,null,null,null,null,null,null,null,null,null,null,null,null,null,null,null,null,null,null,null,null,null,null,null,null,null,null,null,null,null,null,null,null,null,null,null,null,null,null,null,null,null,null,null,null,null,null,null,null,null,null,null,null,null,null,null,null,null,null,null,null,null,null,null,null,null,null,null,null,null,null,null,null,null,null,null,null,null,null,null,null,null,null,null,null,null,null,"Total factord UDL",{"$f":"Z8*Z10+Z9*Z11","v":91},null,null,null,null,null,null,{"$f":"CT15","v":2},{"$f":"CU15","v":0.5},0.52,null,0.59,null,0.6,null,0.54,null,0,null,0.63,null,0]
[null,null,null,null,null,null,null,null,null,null,null,null,null,null,null,null,null,null,null,null,null,null,null,null,null,null,null,null,null,null,null,null,null,null,null,null,null,null,null,null,null,null,null,null,null,null,null,null,null,null,null,null,null,null,null,null,null,null,null,null,null,null,null,null,null,null,null,null,null,null,null,null,null,null,null,null,null,null,null,null,null,null,null,{"$f":"(K8/2)+CF13","v":5000},{"$f":"MIN(CG13:CG17)","v":2000},null,null,null,null,null,null,null,null,null,null,null,null,{"$f":"CT14","v":1.75},{"$f":"CU14","v":0.48},0.5,null,0.55000000000000004,null,0.56999999999999995,null,0.52,null,0,null,0.6,null,0]
[null,null,null,null,null,null,null,null,null,null,null,null,null,null,null,null,null,null,null,null,null,null,null,null,null,null,null,null,null,null,null,null,null,null,null,null,null,null,null,null,null,null,null,null,null,null,null,null,null,null,null,null,null,null,null,null,null,null,null,null,null,null,null,null,null,null,null,null,null,null,null,null,null,null,null,null,null,null,null,null,null,null,null,{"$f":"(K8/2)+CF13","v":5000},{"$f":"MAX(CG13:CG17)","v":8000},null,null,null,null,null,null,null,null,null,"span condition",{"$f":"IF(SUM(CR21:CR22)=0,1,IF(SUM(CR21:CR22)=4,9,IF(AND(CR21=1,CR22=0),2,IF(AND(CR21=0,CR22=1),3,IF(AND(CR21=1,CR22=1),4,IF(AND(CR21=2,CR22=0),5,IF(AND(CR21=0,CR22=2),6,IF(AND(CR21=2,CR22=1),7,IF(AND(CR22=2,CR21=1),8,\"x\")))))))))","v":4},null,{"$f":"CT13","v":1.5},{"$f":"CU13","v":0.45},0.47,null,0.51,null,0.54,null,0.49,null,0,null,0.56999999999999995,null,0]
[null,null,null,null,null,null,null,null,null,null,null,null,null,null,null,null,null,null,null,null,null,null,null,null,null,null,null,null,null,null,null,null,null,null,null,null,null,null,null,null,null,null,null,null,null,null,null,null,null,null,null,null,null,null,null,null,null,null,null,null,null,null,null,null,null,null,null,null,null,null,null,null,null,null,null,null,null,null,null,null,null,null,null,null,null,null,null,null,null,"simplysupportd max momnts pr unit width",null,null,null,null,"lxdis",{"$f":"COUNTIF(K10:P11,\"Discontinuous\")","v":1},null,{"$f":"CT12","v":1.4},{"$f":"CU12","v":0.43},0.45,null,0.49,null,0.52,null,0.48,null,0,null,0.55000000000000004,null,0]
[null,null,null,null,null,null,null,null,null,null,null,null,null,null,null,null,null,null,null,null,null,null,null,null,null,null,null,null,null,null,null,null,null,null,null,null,null,null,null,null,null,null,null,null,null,null,null,null,null,null,null,null,null,null,null,null,null,null,null,null,null,null,null,null,null,null,null,null,null,null,null,null,null,null,null,null,null,null,null,null,null,null,null,{"$f":"MIN(CF13:CF17)","v":2500},{"$f":"(K9/2)+CG13","v":5000},null,null,null,null,"msy",{"$f":"(INDEX(CT91:CV98,MATCH(CR17,CT91:CT98,-1),3))*CM18*MIN(K8:N9)^2/1000000","v":134.22499999999999},"kN/m",null,null,"lydis",{"$f":"COUNTIF(K12:P13,\"Discontinuous\")","v":1},null,{"$f":"CT11","v":1.3},{"$f":"CU11","v":0.41},0.44,null,0.47,null,0.5,null,0.47,null,0,null,0.53,null,0]
[null,null,null,null,null,null,null,null,null,null,null,null,null,null,null,null,null,null,null,null,null,null,null,null,null,null,null,null,null,null,null,null,null,null,null,null,null,null,null,null,null,null,null,null,null,null,null,null,null,null,null,null,null,null,null,null,null,null,null,null,null,null,null,null,null,null,null,null,null,null,null,null,null,null,null,null,null,null,null,null,null,null,null,{"$f":"MAX(CF13:CF17)","v":7500},{"$f":"CG22","v":5000},null,null,null,null,"msx",{"$f":"(INDEX(CT91:CV98,MATCH(CR17,CT91:CT98,-1),2))*CM18*MIN(K8:N9)^2/1000000","v":191.1},"kN/m",null,null,null,null,null,{"$f":"CT10","v":1.2},{"$f":"CU10","v":0.39},0.42,null,0.44,null,0.47,null,0.45,null,0,null,0.51,null,0]
[null,null,null,null,null,null,null,null,null,null,null,null,null,null,null,null,null,null,null,null,null,null,null,null,null,null,null,null,null,null,null,null,null,null,null,null,null,null,null,null,null,null,null,null,null,null,null,null,null,null,null,null,null,null,null,null,null,null,null,null,null,null,null,null,null,null,null,null,null,null,null,null,null,null,null,null,null,null,null,null,null,null,null,null,null,null,null,null,null,null,null,null,null,null,null,null,null,{"$f":"CT9","v":1.1000000000000001},{"$f":"CU9","v":0.36},0.39,null,0.4,null,0.44,null,0.43,null,0,null,0.48,null,0]
[null,null,null,null,null,null,null,null,null,null,null,null,null,null,null,null,null,null,null,null,null,null,null,null,null,null,null,null,null,null,null,null,null,null,null,null,null,null,null,null,null,null,null,null,null,null,null,null,null,null,null,null,null,null,null,null,null,null,null,null,null,null,null,null,null,null,null,null,null,null,null,null,null,null,null,null,null,null,null,null,null,null,{"$f":"CF26-CF25&\"mm\"","v":"5000mm"},{"$f":"MIN(CF13:CF17)","v":2500},500,null,null,null,null,"rstraind max momnts pr unit width",null,null,null,null,null,null,null,{"$f":"CT8","v":1},{"$f":"CU8","v":0.33},0.36,null,0.36,null,0.4,null,0.4,null,0,null,0.45,null,0]
[null,null,null,null,null,null,null,null,null,null,null,null,null,null,null,null,null,null,null,null,null,null,null,null,null,null,null,null,null,null,null,null,null,null,null,null,null,null,null,null,null,null,null,null,null,null,null,null,null,null,null,null,null,null,null,null,null,null,null,null,null,null,null,null,null,null,null,null,null,null,null,null,null,null,null,null,null,null,null,null,null,null,null,{"$f":"MAX(CF13:CF17)","v":7500},{"$f":"CG25","v":500},null,null,null,null,"ngativ at continous dg(HOG)",null,null,null,null,null,null,null,{"$f":"CT16","v":"Bvy"},{"$f":"CU16","v":0.33},0.36,null,0.36,null,0.4,null,0,null,0.4,null,0,null,0.45]
[null,null,null,null,null,null,null,null,null,null,null,null,null,null,null,null,null,null,null,null,null,null,null,null,null,null,null,null,null,null,null,null,null,null,null,null,null,null,null,null,null,null,null,null,null,null,null,null,null,null,null,null,null,null,null,null,null,null,null,null,null,null,null,null,null,null,null,null,null,null,null,null,null,null,null,null,null,null,null,null,null,null,null,null,null,null,null,null,null,"msy",{"$f":"(HLOOKUP(CR20,CT43:DD52,10)*CM18*MIN(K8:N9)^2/1000000)","v":102.375},"kN/m"]
[null,null,null,null,null,null,null,null,null,null,null,null,null,null,null,null,null,null,null,null,null,null,null,null,null,null,null,null,null,null,null,null,null,null,null,null,null,null,null,null,null,null,null,null,null,null,null,null,null,null,null,null,null,null,null,null,null,null,null,null,null,null,null,null,null,null,null,null,null,null,null,null,null,null,null,null,null,null,null,null,null,null,{"$f":"CG29-CG28&\"mm\"","v":"6000mm"},500,{"$f":"MIN(CG13:CG17)","v":2000},null,null,null,null,"msx",{"$f":"(HLOOKUP(CR20,CT43:DD51,MATCH(CR17,CT43:CT51,-1),FALSE))*CM18*MIN(K8:N9)^2/1000000","v":143.32499999999999},"kN/m"]
[null,null,null,null,null,null,null,null,null,null,null,null,null,null,null,null,null,null,null,null,null,null,null,null,null,null,null,null,null,null,null,null,null,null,null,null,null,null,null,null,null,null,null,null,null,null,null,null,null,null,null,null,null,null,null,null,null,null,null,null,null,null,null,null,null,null,null,null,null,null,null,null,null,null,null,null,null,null,null,null,null,null,null,{"$f":"CF28","v":500},{"$f":"MAX(CG13:CG17)","v":8000}]
[null,null,null,null,null,null,null,null,null,null,null,null,null,null,null,null,null,null,null,null,null,null,null,null,null,null,null,null,null,null,null,null,null,null,null,null,null,null,null,null,null,null,null,null,null,null,null,null,null,null,null,null,null,null,null,null,null,null,null,null,null,null,null,null,null,null,null,null,null,null,null,null,null,null,null,null,null,null,null,null,null,null,null,null,null,null,null,null,null,"positiv at mid span(SAG)",null,null,null,null,null,null,null,null,1,2,3,4,5,6,7,8,9]
[null,null,null,null,null,null,null,null,null,null,null,null,null,null,null,null,null,null,null,null,null,null,null,null,null,null,null,null,null,null,null,null,null,null,null,null,null,null,null,null,null,null,null,null,null,null,null,null,null,null,null,null,null,null,null,null,null,null,null,null,null,null,null,null,null,null,null,null,null,null,null,null,null,null,null,null,null,null,null,null,null,null,null,{"$f":"CF19","v":5000},{"$f":"CG25","v":500},null,null,null,null,"msy",{"$f":"(HLOOKUP(CR20,CT69:DD78,10)*CM18*MIN(K8:N9)^2/1000000)","v":77.350000000000009},"kN/m",null,null,null,null,null,null,"bndingmomnt ngativ atcontinuous  dg"]
[null,null,null,null,null,null,null,"Results",null,null,null,null,null,null,null,null,null,null,null,null,null,null,null,null,null,null,null,null,null,null,null,null,null,null,null,null,null,null,null,null,null,null,null,null,null,null,null,null,null,null,null,null,null,null,null,null,null,null,null,null,null,null,null,null,null,null,null,null,null,null,null,null,null,null,null,null,null,null,null,null,null,null,null,{"$f":"CF28","v":500},{"$f":"CG23","v":5000},null,null,null,null,"msx",{"$f":"(HLOOKUP(CR20,CT69:DD77,MATCH(CR17,CT69:CT77,-1),FALSE))*CM18*MIN(K8:N9)^2/1000000","v":106.925},"kN/m",null,null,null,null,null,null,"All 4 edges continuous","1 short edge discount.","1 long edge discont.","2 adjascent edges discont.","2 short edges discont.","2 long edges discont.","3 edges discont. (1 long edge cont.)","3 edges discont. (1 short edge cont.)","4dgs discontinuous"]
[null,null,null,null,null,null,null,null,null,null,null,null,null,null,null,null,null,null,null,null,null,null,null,null,null,null,null,null,null,null,null,null,null,null,null,null,null,null,null,null,null,null,null,null,null,null,null,null,null,null,null,null,null,null,null,null,null,null,null,null,null,null,null,null,null,null,null,null,null,null,null,null,null,null,null,null,null,null,null,null,null,null,null,null,null,null,null,null,null,null,null,null,null,null,null,null,null,null,"Continuous edge","Continuous edge","Continuous edge","Continuous edge","Continuous edge","Continuous edge","Continuous edge","Continuous edge"]
[null,null,null,null,null,null,null,{"$f":"IF(V13=\"Simply Supported\",\"Maximum Moment per Unit Width\",\"Negative Moment at Continuous Edge\")","v":"Negative Moment at Continuous Edge"},null,null,null,null,null,null,null,null,null,null,null,null,null,null,null,null,null,null,null,null,null,null,null,null,null,null,null,null,null,null,null,null,null,null,null,null,null,null,null,null,null,null,null,null,null,null,null,null,null,null,null,null,null,null,null,null,null,null,null,null,null,null,null,null,null,null,null,null,null,null,null,null,null,null,null,null,null,null,null,null,null,"dsignloadsonbams momnts",null,null,null,null,null,null,null,1,3.1E-2,3.9E-2,3.9E-2,4.7E-2,4.5999999999999999E-2,null,5.7000000000000002E-2]
[null,null,null,null,null,null,null,"Msx",null,{"$f":"IF(V13=\"Simply Supported\",CM23,CM28)","v":143.32499999999999},null,null,"kNm/m",null,null,null,null,null,null,null,null,null,null,null,null,null,null,null,null,null,null,null,null,null,null,null,null,null,null,null,null,null,null,null,null,null,null,null,null,null,null,null,null,null,null,null,null,null,null,null,null,null,null,null,null,null,null,null,null,null,null,null,null,null,null,null,null,null,null,null,null,null,null,null,null,null,null,null,null,"continuousdg",null,null,null,null,null,null,null,1.1000000000000001,3.6999999999999998E-2,4.3999999999999997E-2,4.9000000000000002E-2,5.6000000000000001E-2,0.05,null,6.5000000000000002E-2]
[null,null,null,null,null,null,null,"Msy",null,{"$f":"IF(V13=\"Simply Supported\",CM22,CM27)","v":102.375},null,null,"kNm/m",null,null,null,null,null,null,null,null,null,null,null,null,null,null,null,null,null,null,null,null,null,null,null,null,null,null,null,null,null,null,null,null,null,null,null,null,null,null,null,null,null,null,null,null,null,null,null,null,null,null,null,null,null,null,null,null,null,null,null,null,null,null,null,null,null,null,null,null,null,null,null,null,null,null,null,null,"vsy",{"$f":"(HLOOKUP(CR20,CT17:DI26,10)*CM18*MIN(K8:N9)/1000)","v":182},"kN/m",null,null,null,null,null,1.2,4.2000000000000003E-2,4.8000000000000001E-2,5.6000000000000001E-2,6.3E-2,5.3999999999999999E-2,null,7.0999999999999994E-2]
[null,null,null,null,null,null,null,{"$f":"IF(V13=\"Simply Supported\",\"\",\"Positive Moment at Mid Span\")","v":"Positive Moment at Mid Span"},null,null,null,null,null,null,null,null,null,null,null,null,null,null,null,null,null,null,null,null,null,null,null,null,null,null,null,null,null,null,null,null,null,null,null,null,null,null,null,null,null,null,null,null,null,null,null,null,null,null,null,null,null,null,null,null,null,null,null,null,null,null,null,null,null,null,null,null,null,null,null,null,null,null,null,null,null,null,null,null,null,"vsx",{"$f":"(HLOOKUP(CR20,CT17:DI25,MATCH(CR17,CT17:CT25,-1),FALSE))*CM18*MIN(K8:N9)/1000","v":213.84999999999997},"kN/m",null,null,null,null,null,1.3,4.5999999999999999E-2,5.1999999999999998E-2,6.2E-2,6.9000000000000006E-2,5.7000000000000002E-2,null,7.5999999999999998E-2]
[null,null,null,null,null,null,null,{"$f":"IF(V13=\"Simply Supported\",\"\",\"Msx\")","v":"Msx"},null,{"$f":"IF(V13=\"Simply Supported\",\"\",CM32)","v":106.925},null,null,{"$f":"IF(V13=\"Simply Supported\",\"\",\"kNm\")","v":"kNm"},null,null,null,null,null,null,null,null,null,null,null,null,null,null,null,null,null,null,null,null,null,null,null,null,null,null,null,null,null,null,null,null,null,null,null,null,null,null,null,null,null,null,null,null,null,null,null,null,null,null,null,null,null,null,null,null,null,null,null,null,null,null,null,null,null,null,null,null,null,null,null,null,null,null,null,null,"add max bnding momnt",null,null,null,null,null,null,null,1.4,0.05,5.5E-2,6.8000000000000005E-2,7.3999999999999996E-2,0.06,null,8.1000000000000003E-2]
[null,null,null,null,null,null,null,{"$f":"IF(V13=\"Simply Supported\",\"\",\"Msy\")","v":"Msy"},null,{"$f":"IF(V13=\"Simply Supported\",\"\",CM31)","v":77.350000000000009},null,null,{"$f":"IF(V13=\"Simply Supported\",\"\",\"kNm\")","v":"kNm"},null,null,null,null,null,null,null,null,null,null,null,null,null,null,null,null,null,null,null,null,null,null,null,null,null,null,null,null,null,null,null,null,null,null,null,null,null,null,null,null,null,null,null,null,null,null,null,null,null,null,null,null,null,null,null,null,null,null,null,null,null,null,null,null,null,null,null,null,null,null,null,null,null,null,null,null,"add max shar forc",null,null,null,null,null,null,null,1.5,5.2999999999999999E-2,5.8000000000000003E-2,7.2999999999999995E-2,7.8E-2,6.2E-2,null,8.4000000000000005E-2]
[null,null,null,null,null,null,null,null,null,null,null,null,null,null,null,null,null,null,null,null,null,null,null,null,null,null,null,null,null,null,null,null,null,null,null,null,null,null,null,null,null,null,null,null,null,null,null,null,null,null,null,null,null,null,null,null,null,null,null,null,null,null,null,null,null,null,null,null,null,null,null,null,null,null,null,null,null,null,null,null,null,null,null,null,null,null,null,null,null,null,null,null,null,null,null,null,null,1.75,5.8999999999999997E-2,0.06,8.2000000000000003E-2,8.6999999999999994E-2,6.7000000000000004E-2,null,9.1999999999999998E-2]
[null,null,null,null,null,null,null,"Design Loads on Supporting Beams",null,null,null,null,null,null,null,null,null,null,null,null,null,null,null,null,null,null,null,null,null,null,null,null,null,null,null,null,null,null,null,null,null,null,null,null,null,null,null,null,null,null,null,null,null,null,null,null,null,null,null,null,null,null,null,null,null,null,null,null,null,null,null,null,null,null,null,null,null,null,null,null,null,null,null,null,null,null,null,null,null,"discontinuousdg",null,null,null,null,null,null,null,2,6.3E-2,6.7000000000000004E-2,8.8999999999999996E-2,9.2999999999999999E-2,7.0000000000000007E-2,null,9.8000000000000004E-2]
[null,null,null,null,null,null,null,"Continuous Edges",null,null,null,null,null,null,null,null,"Discontinuous Edges",null,null,null,null,null,null,null,null,null,null,null,null,null,null,null,null,null,null,null,null,null,null,null,null,null,null,null,null,null,null,null,null,null,null,null,null,null,null,null,null,null,null,null,null,null,null,null,null,null,null,null,null,null,null,null,null,null,null,null,null,null,null,null,null,null,null,null,null,null,null,null,null,"vsy",{"$f":"(HLOOKUP(CR20,CT113:DH122,10)*CM18*MIN(K8:N9)/1000)","v":118.3},"kN/m",null,null,null,null,null,"Bvy",3.2000000000000001E-2,3.6999999999999998E-2,3.6999999999999998E-2,4.4999999999999998E-2,null,null,null,5.8000000000000003E-2]
[null,null,null,null,null,null,null,"Vsx",null,{"$f":"IF(CM37=0,\"\",CM37)","v":213.84999999999997},null,null,"kN/m",null,null,null,"Vsx",null,{"$f":"IF(CM43=0,\"\",CM43)","v":141.05000000000001},null,null,"kN/m",null,null,null,null,null,null,null,null,null,null,null,null,null,null,null,null,null,null,null,null,null,null,null,null,null,null,null,null,null,null,null,null,null,null,null,null,null,null,null,null,null,null,null,null,null,null,null,null,null,null,null,null,null,null,null,null,null,null,null,null,null,null,null,null,null,null,null,"vsx",{"$f":"(HLOOKUP(CR20,CT113:DD121,MATCH(CR17,CT113:CT121,-1),FALSE))*CM18*MIN(K8:N9)/1000","v":141.05000000000001},"kN/m",null,null,null,null,null,null,1,2,3,4,5,6,7,8,9]
[null,null,null,null,null,null,null,"Vsy",null,{"$f":"IF(CM36=0,\"\",CM36)","v":182},null,null,"kN/m",null,null,null,"Vsy",null,{"$f":"IF(CM42=0,\"\",CM42)","v":118.3},null,null,"kN/m",null,null,null,null,null,null,null,null,null,null,null,null,null,null,null,null,null,null,null,null,null,null,null,null,null,null,null,null,null,null,null,null,null,null,null,null,null,null,null,null,null,null,null,null,null,null,null,null,null,null,null,null,null,null,null,null,null,null,null,null,null,null,null,null,null,null,null,"add max bnding momnt",null,null,null,null,null,null,null,{"$f":"CT41","v":2},{"$f":"CU41","v":6.3E-2},6.7000000000000004E-2,8.8999999999999996E-2,9.2999999999999999E-2,7.0000000000000007E-2,{"$f":"CZ41","v":0},9.8000000000000004E-2,0,0]
[null,null,null,null,null,null,null,null,null,null,null,null,null,null,null,null,null,null,null,null,null,null,null,null,null,null,null,null,null,null,null,null,null,null,null,null,null,null,null,null,null,null,null,null,null,null,null,null,null,null,null,null,null,null,null,null,null,null,null,null,null,null,null,null,null,null,null,null,null,null,null,null,null,null,null,null,null,null,null,null,null,null,null,null,null,null,null,null,null,"add max shar forc",null,null,null,null,null,null,null,{"$f":"CT40","v":1.75},{"$f":"CU40","v":5.8999999999999997E-2},0.06,8.2000000000000003E-2,8.6999999999999994E-2,6.7000000000000004E-2,{"$f":"CZ40","v":0},9.1999999999999998E-2,0,0]
[null,null,null,null,null,null,null,"Design Maximum Moment on Continuous Support Beams",null,null,null,null,null,null,null,null,null,null,null,null,null,null,null,null,null,null,null,null,null,null,null,null,null,null,null,null,null,null,null,null,null,null,null,null,null,null,null,null,null,null,null,null,null,null,null,null,null,null,null,null,null,null,null,null,null,null,null,null,null,null,null,null,null,null,null,null,null,null,null,null,null,null,null,null,null,null,null,null,null,null,null,null,null,null,null,null,null,{"$f":"CT39","v":1.5},{"$f":"CU39","v":5.2999999999999999E-2},5.8000000000000003E-2,7.2999999999999995E-2,7.8E-2,6.2E-2,{"$f":"CZ39","v":0},8.4000000000000005E-2,0,0]
[null,null,null,null,null,null,null,"Mx",null,{"$f":"IF(CM36=0,\"\",CM49)","v":533.203125},null,null,"kNm",null,null,null,null,null,null,null,null,null,null,null,null,null,null,null,null,null,null,null,null,null,null,null,null,null,null,null,null,null,null,null,null,null,null,null,null,null,null,null,null,null,null,null,null,null,null,null,null,null,null,null,null,null,null,null,null,null,null,null,null,null,null,null,null,null,null,null,null,null,null,null,null,null,null,null,null,null,null,null,null,null,null,null,null,{"$f":"CT38","v":1.4},{"$f":"CU38","v":0.05},5.5E-2,6.8000000000000005E-2,7.3999999999999996E-2,0.06,{"$f":"CZ38","v":0},8.1000000000000003E-2,0,0]
[null,null,null,null,null,null,null,"My",null,{"$f":"IF(CM37=0,\"\",CM51)","v":902.17968749999989},null,null,"kNm",null,null,null,null,null,null,null,null,null,null,null,null,null,null,null,null,null,null,null,null,null,null,null,null,null,null,null,null,null,null,null,null,null,null,null,null,null,null,null,null,null,null,null,null,null,null,null,null,null,null,null,null,null,null,null,null,null,null,null,null,null,null,null,null,null,null,null,null,null,null,null,null,null,null,null,null,"Vx",{"$f":"((CM36*0.75*K8*0.001)/(2*K8*0.001))*(K8*0.001)","v":341.25},"kN",null,null,null,null,null,{"$f":"CT37","v":1.3},{"$f":"CU37","v":4.5999999999999999E-2},5.1999999999999998E-2,6.2E-2,6.9000000000000006E-2,5.7000000000000002E-2,{"$f":"CZ37","v":0},7.5999999999999998E-2,0,0]
[null,null,null,null,null,null,null,"Design Maximum Shear Force on Continuous Support Beams",null,null,null,null,null,null,null,null,null,null,null,null,null,null,null,null,null,null,null,null,null,null,null,null,null,null,null,null,null,null,null,null,null,null,null,null,null,null,null,null,null,null,null,null,null,null,null,null,null,null,null,null,null,null,null,null,null,null,null,null,null,null,null,null,null,null,null,null,null,null,null,null,null,null,null,null,null,null,null,null,null,"Mx",{"$f":"CM48*((0.125*K8*0.001)+(CM48/(2*CM36)))","v":533.203125},"kNm",null,null,null,null,null,{"$f":"CT36","v":1.2},{"$f":"CU36","v":4.2000000000000003E-2},4.8000000000000001E-2,5.6000000000000001E-2,6.3E-2,5.3999999999999999E-2,{"$f":"CZ36","v":0},7.0999999999999994E-2,0,0]
[null,null,null,null,null,null,null,"Vx",null,{"$f":"IF(CM48=0,\"\",CM48)","v":341.25},null,null,"kN",null,null,null,null,null,null,null,null,null,null,null,null,null,null,null,null,null,null,null,null,null,null,null,null,null,null,null,null,null,null,null,null,null,null,null,null,null,null,null,null,null,null,null,null,null,null,null,null,null,null,null,null,null,null,null,null,null,null,null,null,null,null,null,null,null,null,null,null,null,null,null,null,null,null,null,null,"Vy",{"$f":"((CM37*0.75*K9*0.001)/(2*K9*0.001))*(K9*0.001)","v":481.16249999999997},"kN",null,null,null,null,null,{"$f":"CT35","v":1.1000000000000001},{"$f":"CU35","v":3.6999999999999998E-2},4.3999999999999997E-2,4.9000000000000002E-2,5.6000000000000001E-2,0.05,{"$f":"CZ35","v":0},6.5000000000000002E-2,0,0]
[null,null,null,null,null,null,null,"Vy",null,{"$f":"IF(CM37=0,\"\",CM50)","v":481.16249999999997},null,null,"kN",null,null,null,null,null,null,null,null,null,null,null,null,null,null,null,null,null,null,null,null,null,null,null,null,null,null,null,null,null,null,null,null,null,null,null,null,null,null,null,null,null,null,null,null,null,null,null,null,null,null,null,null,null,null,null,null,null,null,null,null,null,null,null,null,null,null,null,null,null,null,null,null,null,null,null,null,"My",{"$f":"CM50*((0.125*K9*0.001)+(CM50/(2*CM37)))","v":902.17968749999989},"kNm",null,null,null,null,null,{"$f":"CT34","v":1},{"$f":"CU34","v":3.1E-2},3.9E-2,3.9E-2,4.7E-2,4.5999999999999999E-2,{"$f":"CZ34","v":0},5.7000000000000002E-2,0,0]
[null,null,null,null,null,null,null,null,null,null,null,null,null,null,null,null,null,null,null,null,null,null,null,null,null,null,null,null,null,null,null,null,null,null,null,null,null,null,null,null,null,null,null,null,null,null,null,null,null,null,null,null,null,null,null,null,null,null,null,null,null,null,null,null,null,null,null,null,null,null,null,null,null,null,null,null,null,null,null,null,null,null,null,null,null,null,null,null,null,null,null,null,null,null,null,null,null,{"$f":"CT42","v":"Bvy"},{"$f":"CU42","v":3.2000000000000001E-2},3.6999999999999998E-2,3.6999999999999998E-2,4.4999999999999998E-2,0,{"$f":"CZ42","v":0},0,5.8000000000000003E-2,0]
[]
[]
[]
[null,null,null,null,null,null,null,null,null,null,null,null,null,null,null,null,null,null,null,null,null,null,null,null,null,null,null,null,null,null,null,null,null,null,null,null,null,null,null,null,null,null,null,null,null,null,null,null,null,null,null,null,null,null,null,null,null,null,null,null,null,null,null,null,null,null,null,null,null,null,null,null,null,null,null,null,null,null,null,null,null,null,null,null,null,null,null,null,null,null,null,null,null,null,null,null,null,null,1,2,3,4,5,6,7,8,9]
[null,null,null,null,null,null,null,null,null,null,null,null,null,null,null,null,null,null,null,null,null,null,null,null,null,null,null,null,null,null,null,null,null,null,null,null,null,null,null,null,null,null,null,null,null,null,null,null,null,null,null,null,null,null,null,null,null,null,null,null,null,null,null,null,null,null,null,null,null,null,null,null,null,null,null,null,null,null,null,null,null,null,null,null,null,null,null,null,null,null,null,null,null,null,null,null,null,null,"bndingmomnt positiv atmidspan"]
[null,null,null,null,null,null,null,null,null,null,null,null,null,null,null,null,null,null,null,null,null,null,null,null,null,null,null,null,null,null,null,null,null,null,null,null,null,null,null,null,null,null,null,null,null,null,null,null,null,null,null,null,null,null,null,null,null,null,null,null,null,null,null,null,null,null,null,null,null,null,null,null,null,null,null,null,null,null,null,null,null,null,null,null,null,null,null,null,null,null,null,null,null,null,null,null,null,null,"All 4 edges continuous","1 short edge discount.","1 long edge discont.","2 adjascent edges discont.","2 short edges discont.","2 long edges discont.","3 edges discont. (1 long edge cont.)","3 edges discont. (1 short edge cont.)","4dgs discontinuous"]
[null,null,null,null,null,null,null,null,null,null,null,null,null,null,null,null,null,null,null,null,null,null,null,null,null,null,null,null,null,null,null,null,null,null,null,null,null,null,null,null,null,null,null,null,null,null,null,null,null,null,null,null,null,null,null,null,null,null,null,null,null,null,null,null,null,null,null,null,null,null,null,null,null,null,null,null,null,null,null,null,null,null,null,null,null,null,null,null,null,null,null,null,null,null,null,null,null,null,"Continuous edge","Continuous edge","Continuous edge","Continuous edge","Continuous edge","Continuous edge","Continuous edge","Continuous edge"]
[null,null,null,null,null,null,null,null,null,null,null,null,null,null,null,null,null,null,null,null,null,null,null,null,null,null,null,null,null,null,null,null,null,null,null,null,null,null,null,null,null,null,null,null,null,null,null,null,null,null,null,null,null,null,null,null,null,null,null,null,null,null,null,null,null,null,null,null,null,null,null,null,null,null,null,null,null,null,null,null,null,null,null,null,null,null,null,null,null,null,null,null,null,null,null,null,null,1,2.4E-2,2.9000000000000001E-2,0.03,3.5999999999999997E-2,3.4000000000000002E-2,3.4000000000000002E-2,4.2999999999999997E-2,4.2000000000000003E-2,5.5E-2]
[null,null,null,null,null,null,null,null,null,null,null,null,null,null,null,null,null,null,null,null,null,null,null,null,null,null,null,null,null,null,null,null,null,null,null,null,null,null,null,null,null,null,null,null,null,null,null,null,null,null,null,null,null,null,null,null,null,null,null,null,null,null,null,null,null,null,null,null,null,null,null,null,null,null,null,null,null,null,null,null,null,null,null,null,null,null,null,null,null,null,null,null,null,null,null,null,null,1.1000000000000001,2.8000000000000001E-2,3.3000000000000002E-2,3.5999999999999997E-2,4.2000000000000003E-2,3.7999999999999999E-2,4.5999999999999999E-2,4.8000000000000001E-2,5.3999999999999999E-2,6.5000000000000002E-2]
[null,null,null,null,null,null,null,null,null,null,null,null,null,null,null,null,null,null,null,null,null,null,null,null,null,null,null,null,null,null,null,null,null,null,null,null,null,null,null,null,null,null,null,null,null,null,null,null,null,null,null,null,null,null,null,null,null,null,null,null,null,null,null,null,null,null,null,null,null,null,null,null,null,null,null,null,null,null,null,null,null,null,null,null,null,null,null,null,null,null,null,null,null,null,null,null,null,1.2,3.2000000000000001E-2,3.5999999999999997E-2,4.2000000000000003E-2,4.7E-2,0.04,5.6000000000000001E-2,5.2999999999999999E-2,6.3E-2,7.3999999999999996E-2]
[null,null,null,null,null,null,null,null,null,null,null,null,null,null,null,null,null,null,null,null,null,null,null,null,null,null,null,null,null,null,null,null,null,null,null,null,null,null,null,null,null,null,null,null,null,null,null,null,null,null,null,null,null,null,null,null,null,null,null,null,null,null,null,null,null,null,null,null,null,null,null,null,null,null,null,null,null,null,null,null,null,null,null,null,null,null,null,null,null,null,null,null,null,null,null,null,null,1.3,3.5000000000000003E-2,3.9E-2,4.7E-2,5.0999999999999997E-2,4.2999999999999997E-2,6.5000000000000002E-2,5.7000000000000002E-2,7.0999999999999994E-2,8.1000000000000003E-2]
[null,null,null,null,null,null,null,null,null,null,null,null,null,null,null,null,null,null,null,null,null,null,null,null,null,null,null,null,null,null,null,null,null,null,null,null,null,null,null,null,null,null,null,null,null,null,null,null,null,null,null,null,null,null,null,null,null,null,null,null,null,null,null,null,null,null,null,null,null,null,null,null,null,null,null,null,null,null,null,null,null,null,null,null,null,null,null,null,null,null,null,null,null,null,null,null,null,1.4,3.6999999999999998E-2,4.1000000000000002E-2,5.0999999999999997E-2,5.5E-2,4.4999999999999998E-2,7.1999999999999995E-2,0.06,7.8E-2,8.6999999999999994E-2]
[null,null,null,null,null,null,null,null,null,null,null,null,null,null,null,null,null,null,null,null,null,null,null,null,null,null,null,null,null,null,null,null,null,null,null,null,null,null,null,null,null,null,null,null,null,null,null,null,null,null,null,null,null,null,null,null,null,null,null,null,null,null,null,null,null,null,null,null,null,null,null,null,null,null,null,null,null,null,null,null,null,null,null,null,null,null,null,null,null,null,null,null,null,null,null,null,null,1.5,0.04,0.04,5.5E-2,5.8999999999999997E-2,4.7E-2,7.8E-2,6.3E-2,8.4000000000000005E-2,9.1999999999999998E-2]
[null,null,null,null,null,null,null,null,null,null,null,null,null,null,null,null,null,null,null,null,null,null,null,null,null,null,null,null,null,null,null,null,null,null,null,null,null,null,null,null,null,null,null,null,null,null,null,null,null,null,null,null,null,null,null,null,null,null,null,null,null,null,null,null,null,null,null,null,null,null,null,null,null,null,null,null,null,null,null,null,null,null,null,null,null,null,null,null,null,null,null,null,null,null,null,null,null,1.75,4.3999999999999997E-2,4.7E-2,6.2E-2,6.5000000000000002E-2,0.05,9.0999999999999998E-2,6.9000000000000006E-2,9.6000000000000002E-2,0.10299999999999999]
[null,null,null,null,null,null,null,null,null,null,null,null,null,null,null,null,null,null,null,null,null,null,null,null,null,null,null,null,null,null,null,null,null,null,null,null,null,null,null,null,null,null,null,null,null,null,null,null,null,null,null,null,null,null,null,null,null,null,null,null,null,null,null,null,null,null,null,null,null,null,null,null,null,null,null,null,null,null,null,null,null,null,null,null,null,null,null,null,null,null,null,null,null,null,null,null,null,2,4.8000000000000001E-2,0.05,6.7000000000000004E-2,7.0000000000000007E-2,5.2999999999999999E-2,0.1,7.3999999999999996E-2,0.105,0.111]
[null,null,null,null,null,null,null,null,null,null,null,null,null,null,null,null,null,null,null,null,null,null,null,null,null,null,null,null,null,null,null,null,null,null,null,null,null,null,null,null,null,null,null,null,null,null,null,null,null,null,null,null,null,null,null,null,null,null,null,null,null,null,null,null,null,null,null,null,null,null,null,null,null,null,null,null,null,null,null,null,null,null,null,null,null,null,null,null,null,null,null,null,null,null,null,null,null,"Bvy",2.4E-2,2.8000000000000001E-2,2.8000000000000001E-2,3.4000000000000002E-2,3.4000000000000002E-2,3.4000000000000002E-2,4.3999999999999997E-2,4.3999999999999997E-2,5.6000000000000001E-2]
[null,null,null,null,null,null,null,null,null,null,null,null,null,null,null,null,null,null,null,null,null,null,null,null,null,null,null,null,null,null,null,null,null,null,null,null,null,null,null,null,null,null,null,null,null,null,null,null,null,null,null,null,null,null,null,null,null,null,null,null,null,null,null,null,null,null,null,null,null,null,null,null,null,null,null,null,null,null,null,null,null,null,null,null,null,null,null,null,null,null,null,null,null,null,null,null,null,null,1,2,3,4,5,6,7,8,9]
[null,null,null,null,null,null,null,null,null,null,null,null,null,null,null,null,null,null,null,null,null,null,null,null,null,null,null,null,null,null,null,null,null,null,null,null,null,null,null,null,null,null,null,null,null,null,null,null,null,null,null,null,null,null,null,null,null,null,null,null,null,null,null,null,null,null,null,null,null,null,null,null,null,null,null,null,null,null,null,null,null,null,null,null,null,null,null,null,null,null,null,null,null,null,null,null,null,{"$f":"CT67","v":2},{"$f":"CU67","v":4.8000000000000001E-2},0.05,6.7000000000000004E-2,7.0000000000000007E-2,5.2999999999999999E-2,0.1,7.3999999999999996E-2,0.105,0.111]
[null,null,null,null,null,null,null,null,null,null,null,null,null,null,null,null,null,null,null,null,null,null,null,null,null,null,null,null,null,null,null,null,null,null,null,null,null,null,null,null,null,null,null,null,null,null,null,null,null,null,null,null,null,null,null,null,null,null,null,null,null,null,null,null,null,null,null,null,null,null,null,null,null,null,null,null,null,null,null,null,null,null,null,null,null,null,null,null,null,null,null,null,null,null,null,null,null,{"$f":"CT66","v":1.75},{"$f":"CU66","v":4.3999999999999997E-2},4.7E-2,6.2E-2,6.5000000000000002E-2,0.05,9.0999999999999998E-2,6.9000000000000006E-2,9.6000000000000002E-2,0.10299999999999999]
[null,null,null,null,null,null,null,null,null,null,null,null,null,null,null,null,null,null,null,null,null,null,null,null,null,null,null,null,null,null,null,null,null,null,null,null,null,null,null,null,null,null,null,null,null,null,null,null,null,null,null,null,null,null,null,null,null,null,null,null,null,null,null,null,null,null,null,null,null,null,null,null,null,null,null,null,null,null,null,null,null,null,null,null,null,null,null,null,null,null,null,null,null,null,null,null,null,{"$f":"CT65","v":1.5},{"$f":"CU65","v":0.04},0.04,5.5E-2,5.8999999999999997E-2,4.7E-2,7.8E-2,6.3E-2,8.4000000000000005E-2,9.1999999999999998E-2]
[null,null,null,null,null,null,null,null,null,null,null,null,null,null,null,null,null,null,null,null,null,null,null,null,null,null,null,null,null,null,null,null,null,null,null,null,null,null,null,null,null,null,null,null,null,null,null,null,null,null,null,null,null,null,null,null,null,null,null,null,null,null,null,null,null,null,null,null,null,null,null,null,null,null,null,null,null,null,null,null,null,null,null,null,null,null,null,null,null,null,null,null,null,null,null,null,null,{"$f":"CT64","v":1.4},{"$f":"CU64","v":3.6999999999999998E-2},4.1000000000000002E-2,5.0999999999999997E-2,5.5E-2,4.4999999999999998E-2,7.1999999999999995E-2,0.06,7.8E-2,8.6999999999999994E-2]
[null,null,null,null,null,null,null,null,null,null,null,null,null,null,null,null,null,null,null,null,null,null,null,null,null,null,null,null,null,null,null,null,null,null,null,null,null,null,null,null,null,null,null,null,null,null,null,null,null,null,null,null,null,null,null,null,null,null,null,null,null,null,null,null,null,null,null,null,null,null,null,null,null,null,null,null,null,null,null,null,null,null,null,null,null,null,null,null,null,null,null,null,null,null,null,null,null,{"$f":"CT63","v":1.3},{"$f":"CU63","v":3.5000000000000003E-2},3.9E-2,4.7E-2,5.0999999999999997E-2,4.2999999999999997E-2,6.5000000000000002E-2,5.7000000000000002E-2,7.0999999999999994E-2,8.1000000000000003E-2]
[null,null,null,null,null,null,null,null,null,null,null,null,null,null,null,null,null,null,null,null,null,null,null,null,null,null,null,null,null,null,null,null,null,null,null,null,null,null,null,null,null,null,null,null,null,null,null,null,null,null,null,null,null,null,null,null,null,null,null,null,null,null,null,null,null,null,null,null,null,null,null,null,null,null,null,null,null,null,null,null,null,null,null,null,null,null,null,null,null,null,null,null,null,null,null,null,null,{"$f":"CT62","v":1.2},{"$f":"CU62","v":3.2000000000000001E-2},3.5999999999999997E-2,4.2000000000000003E-2,4.7E-2,0.04,5.6000000000000001E-2,5.2999999999999999E-2,6.3E-2,7.3999999999999996E-2]
[null,null,null,null,null,null,null,null,null,null,null,null,null,null,null,null,null,null,null,null,null,null,null,null,null,null,null,null,null,null,null,null,null,null,null,null,null,null,null,null,null,null,null,null,null,null,null,null,null,null,null,null,null,null,null,null,null,null,null,null,null,null,null,null,null,null,null,null,null,null,null,null,null,null,null,null,null,null,null,null,null,null,null,null,null,null,null,null,null,null,null,null,null,null,null,null,null,{"$f":"CT61","v":1.1000000000000001},{"$f":"CU61","v":2.8000000000000001E-2},3.3000000000000002E-2,3.5999999999999997E-2,4.2000000000000003E-2,3.7999999999999999E-2,4.5999999999999999E-2,4.8000000000000001E-2,5.3999999999999999E-2,6.5000000000000002E-2]
[null,null,null,null,null,null,null,null,null,null,null,null,null,null,null,null,null,null,null,null,null,null,null,null,null,null,null,null,null,null,null,null,null,null,null,null,null,null,null,null,null,null,null,null,null,null,null,null,null,null,null,null,null,null,null,null,null,null,null,null,null,null,null,null,null,null,null,null,null,null,null,null,null,null,null,null,null,null,null,null,null,null,null,null,null,null,null,null,null,null,null,null,null,null,null,null,null,{"$f":"CT60","v":1},{"$f":"CU60","v":2.4E-2},2.9000000000000001E-2,0.03,3.5999999999999997E-2,3.4000000000000002E-2,3.4000000000000002E-2,4.2999999999999997E-2,4.2000000000000003E-2,5.5E-2]
[null,null,null,null,null,null,null,null,null,null,null,null,null,null,null,null,null,null,null,null,null,null,null,null,null,null,null,null,null,null,null,null,null,null,null,null,null,null,null,null,null,null,null,null,null,null,null,null,null,null,null,null,null,null,null,null,null,null,null,null,null,null,null,null,null,null,null,null,null,null,null,null,null,null,null,null,null,null,null,null,null,null,null,null,null,null,null,null,null,null,null,null,null,null,null,null,null,{"$f":"CT68","v":"Bvy"},{"$f":"CU68","v":2.4E-2},2.8000000000000001E-2,2.8000000000000001E-2,3.4000000000000002E-2,3.4000000000000002E-2,3.4000000000000002E-2,4.3999999999999997E-2,4.3999999999999997E-2,5.6000000000000001E-2]
[]
[null,null,null,null,null,null,null,null,null,null,null,null,null,null,null,null,null,null,null,null,null,null,null,null,null,null,null,null,null,null,null,null,null,null,null,null,null,null,null,null,null,null,null,null,null,null,null,null,null,null,null,null,null,null,null,null,null,null,null,null,null,null,null,null,null,null,null,null,null,null,null,null,null,null,null,null,null,null,null,null,null,null,null,null,null,null,null,null,null,null,null,null,null,null,null,null,null,null,"asx","asy"]
[null,null,null,null,null,null,null,null,null,null,null,null,null,null,null,null,null,null,null,null,null,null,null,null,null,null,null,null,null,null,null,null,null,null,null,null,null,null,null,null,null,null,null,null,null,null,null,null,null,null,null,null,null,null,null,null,null,null,null,null,null,null,null,null,null,null,null,null,null,null,null,null,null,null,null,null,null,null,null,null,null,null,null,null,null,null,null,null,null,null,null,null,null,null,null,null,null,1,6.2E-2,6.2E-2]
[null,null,null,null,null,null,null,null,null,null,null,null,null,null,null,null,null,null,null,null,null,null,null,null,null,null,null,null,null,null,null,null,null,null,null,null,null,null,null,null,null,null,null,null,null,null,null,null,null,null,null,null,null,null,null,null,null,null,null,null,null,null,null,null,null,null,null,null,null,null,null,null,null,null,null,null,null,null,null,null,null,null,null,null,null,null,null,null,null,null,null,null,null,null,null,null,null,1.1000000000000001,7.3999999999999996E-2,6.0999999999999999E-2]
[null,null,null,null,null,null,null,null,null,null,null,null,null,null,null,null,null,null,null,null,null,null,null,null,null,null,null,null,null,null,null,null,null,null,null,null,null,null,null,null,null,null,null,null,null,null,null,null,null,null,null,null,null,null,null,null,null,null,null,null,null,null,null,null,null,null,null,null,null,null,null,null,null,null,null,null,null,null,null,null,null,null,null,null,null,null,null,null,null,null,null,null,null,null,null,null,null,1.2,8.4000000000000005E-2,5.8999999999999997E-2]
[null,null,null,null,null,null,null,null,null,null,null,null,null,null,null,null,null,null,null,null,null,null,null,null,null,null,null,null,null,null,null,null,null,null,null,null,null,null,null,null,null,null,null,null,null,null,null,null,null,null,null,null,null,null,null,null,null,null,null,null,null,null,null,null,null,null,null,null,null,null,null,null,null,null,null,null,null,null,null,null,null,null,null,null,null,null,null,null,null,null,null,null,null,null,null,null,null,1.3,9.2999999999999999E-2,5.5E-2]
[null,null,null,null,null,null,null,null,null,null,null,null,null,null,null,null,null,null,null,null,null,null,null,null,null,null,null,null,null,null,null,null,null,null,null,null,null,null,null,null,null,null,null,null,null,null,null,null,null,null,null,null,null,null,null,null,null,null,null,null,null,null,null,null,null,null,null,null,null,null,null,null,null,null,null,null,null,null,null,null,null,null,null,null,null,null,null,null,null,null,null,null,null,null,null,null,null,1.4,9.9000000000000005E-2,5.0999999999999997E-2]
[null,null,null,null,null,null,null,null,null,null,null,null,null,null,null,null,null,null,null,null,null,null,null,null,null,null,null,null,null,null,null,null,null,null,null,null,null,null,null,null,null,null,null,null,null,null,null,null,null,null,null,null,null,null,null,null,null,null,null,null,null,null,null,null,null,null,null,null,null,null,null,null,null,null,null,null,null,null,null,null,null,null,null,null,null,null,null,null,null,null,null,null,null,null,null,null,null,1.5,0.104,4.5999999999999999E-2]
[null,null,null,null,null,null,null,null,null,null,null,null,null,null,null,null,null,null,null,null,null,null,null,null,null,null,null,null,null,null,null,null,null,null,null,null,null,null,null,null,null,null,null,null,null,null,null,null,null,null,null,null,null,null,null,null,null,null,null,null,null,null,null,null,null,null,null,null,null,null,null,null,null,null,null,null,null,null,null,null,null,null,null,null,null,null,null,null,null,null,null,null,null,null,null,null,null,1.75,0.113,3.6999999999999998E-2]
[null,null,null,null,null,null,null,null,null,null,null,null,null,null,null,null,null,null,null,null,null,null,null,null,null,null,null,null,null,null,null,null,null,null,null,null,null,null,null,null,null,null,null,null,null,null,null,null,null,null,null,null,null,null,null,null,null,null,null,null,null,null,null,null,null,null,null,null,null,null,null,null,null,null,null,null,null,null,null,null,null,null,null,null,null,null,null,null,null,null,null,null,null,null,null,null,null,2,0.11799999999999999,2.9000000000000001E-2]
[]
[]
[null,null,null,null,null,null,null,null,null,null,null,null,null,null,null,null,null,null,null,null,null,null,null,null,null,null,null,null,null,null,null,null,null,null,null,null,null,null,null,null,null,null,null,null,null,null,null,null,null,null,null,null,null,null,null,null,null,null,null,null,null,null,null,null,null,null,null,null,null,null,null,null,null,null,null,null,null,null,null,null,null,null,null,null,null,null,null,null,null,null,null,null,null,null,null,null,null,{"$f":"CT88","v":2},{"$f":"CU88","v":0.11799999999999999},2.9000000000000001E-2]
[null,null,null,null,null,null,null,null,null,null,null,null,null,null,null,null,null,null,null,null,null,null,null,null,null,null,null,null,null,null,null,null,null,null,null,null,null,null,null,null,null,null,null,null,null,null,null,null,null,null,null,null,null,null,null,null,null,null,null,null,null,null,null,null,null,null,null,null,null,null,null,null,null,null,null,null,null,null,null,null,null,null,null,null,null,null,null,null,null,null,null,null,null,null,null,null,null,{"$f":"CT87","v":1.75},{"$f":"CU87","v":0.113},3.6999999999999998E-2]
[null,null,null,null,null,null,null,null,null,null,null,null,null,null,null,null,null,null,null,null,null,null,null,null,null,null,null,null,null,null,null,null,null,null,null,null,null,null,null,null,null,null,null,null,null,null,null,null,null,null,null,null,null,null,null,null,null,null,null,null,null,null,null,null,null,null,null,null,null,null,null,null,null,null,null,null,null,null,null,null,null,null,null,null,null,null,null,null,null,null,null,null,null,null,null,null,null,{"$f":"CT86","v":1.5},{"$f":"CU86","v":0.104},4.5999999999999999E-2]
[null,null,null,null,null,null,null,null,null,null,null,null,null,null,null,null,null,null,null,null,null,null,null,null,null,null,null,null,null,null,null,null,null,null,null,null,null,null,null,null,null,null,null,null,null,null,null,null,null,null,null,null,null,null,null,null,null,null,null,null,null,null,null,null,null,null,null,null,null,null,null,null,null,null,null,null,null,null,null,null,null,null,null,null,null,null,null,null,null,null,null,null,null,null,null,null,null,{"$f":"CT85","v":1.4},{"$f":"CU85","v":9.9000000000000005E-2},5.0999999999999997E-2]
[null,null,null,null,null,null,null,null,null,null,null,null,null,null,null,null,null,null,null,null,null,null,null,null,null,null,null,null,null,null,null,null,null,null,null,null,null,null,null,null,null,null,null,null,null,null,null,null,null,null,null,null,null,null,null,null,null,null,null,null,null,null,null,null,null,null,null,null,null,null,null,null,null,null,null,null,null,null,null,null,null,null,null,null,null,null,null,null,null,null,null,null,null,null,null,null,null,{"$f":"CT84","v":1.3},{"$f":"CU84","v":9.2999999999999999E-2},5.5E-2]
[null,null,null,null,null,null,null,null,null,null,null,null,null,null,null,null,null,null,null,null,null,null,null,null,null,null,null,null,null,null,null,null,null,null,null,null,null,null,null,null,null,null,null,null,null,null,null,null,null,null,null,null,null,null,null,null,null,null,null,null,null,null,null,null,null,null,null,null,null,null,null,null,null,null,null,null,null,null,null,null,null,null,null,null,null,null,null,null,null,null,null,null,null,null,null,null,null,{"$f":"CT83","v":1.2},{"$f":"CU83","v":8.4000000000000005E-2},5.8999999999999997E-2]
[null,null,null,null,null,null,null,null,null,null,null,null,null,null,null,null,null,null,null,null,null,null,null,null,null,null,null,null,null,null,null,null,null,null,null,null,null,null,null,null,null,null,null,null,null,null,null,null,null,null,null,null,null,null,null,null,null,null,null,null,null,null,null,null,null,null,null,null,null,null,null,null,null,null,null,null,null,null,null,null,null,null,null,null,null,null,null,null,null,null,null,null,null,null,null,null,null,{"$f":"CT82","v":1.1000000000000001},{"$f":"CU82","v":7.3999999999999996E-2},6.0999999999999999E-2]
[null,null,null,null,null,null,null,null,null,null,null,null,null,null,null,null,null,null,null,null,null,null,null,null,null,null,null,null,null,null,null,null,null,null,null,null,null,null,null,null,null,null,null,null,null,null,null,null,null,null,null,null,null,null,null,null,null,null,null,null,null,null,null,null,null,null,null,null,null,null,null,null,null,null,null,null,null,null,null,null,null,null,null,null,null,null,null,null,null,null,null,null,null,null,null,null,null,{"$f":"CT81","v":1},{"$f":"CU81","v":6.2E-2},6.2E-2]
[]
[]
[null,null,null,null,null,null,null,null,null,null,null,null,null,null,null,null,null,null,null,null,null,null,null,null,null,null,null,null,null,null,null,null,null,null,null,null,null,null,null,null,null,null,null,null,null,null,null,null,null,null,null,null,null,null,null,null,null,null,null,null,null,null,null,null,null,null,null,null,null,null,null,null,null,null,null,null,null,null,null,null,null,null,null,null,null,null,null,null,null,null,null,null,null,null,null,null,null,null,2,3,4,5,6,7,8,9]
[null,null,null,null,null,null,null,null,null,null,null,null,null,null,null,null,null,null,null,null,null,null,null,null,null,null,null,null,null,null,null,null,null,null,null,null,null,null,null,null,null,null,null,null,null,null,null,null,null,null,null,null,null,null,null,null,null,null,null,null,null,null,null,null,null,null,null,null,null,null,null,null,null,null,null,null,null,null,null,null,null,null,null,null,null,null,null,null,null,null,null,null,null,null,null,null,null,null,"1 short edge discount.","1 long edge discont.","2 adjascent edges discont.","2 short edges discont.","2 long edges discont.","3 edges discont. (1 long edge cont.)","3 edges discont. (1 short edge cont.)","All 4 edges discont."]
[null,null,null,null,null,null,null,null,null,null,null,null,null,null,null,null,null,null,null,null,null,null,null,null,null,null,null,null,null,null,null,null,null,null,null,null,null,null,null,null,null,null,null,null,null,null,null,null,null,null,null,null,null,null,null,null,null,null,null,null,null,null,null,null,null,null,null,null,null,null,null,null,null,null,null,null,null,null,null,null,null,null,null,null,null,null,null,null,null,null,null,null,null,null,null,null,null,null,"Discontinuous edge","Discontinuous edge","Discontinuous edge","Discontinuous edge","Discontinuous edge","Discontinuous edge","Discontinuous edge","Discontinuous edge"]
[null,null,null,null,null,null,null,null,null,null,null,null,null,null,null,null,null,null,null,null,null,null,null,null,null,null,null,null,null,null,null,null,null,null,null,null,null,null,null,null,null,null,null,null,null,null,null,null,null,null,null,null,null,null,null,null,null,null,null,null,null,null,null,null,null,null,null,null,null,null,null,null,null,null,null,null,null,null,null,null,null,null,null,null,null,null,null,null,null,null,null,null,null,null,null,null,null,1,0,0.24,0.26,0,0.26,0.3,0.28999999999999998,0.33]
[null,null,null,null,null,null,null,null,null,null,null,null,null,null,null,null,null,null,null,null,null,null,null,null,null,null,null,null,null,null,null,null,null,null,null,null,null,null,null,null,null,null,null,null,null,null,null,null,null,null,null,null,null,null,null,null,null,null,null,null,null,null,null,null,null,null,null,null,null,null,null,null,null,null,null,null,null,null,null,null,null,null,null,null,null,null,null,null,null,null,null,null,null,null,null,null,null,1.1000000000000001,0,0.27,0.28999999999999998,0,0.3,0.32,0.33,0.36]
[null,null,null,null,null,null,null,null,null,null,null,null,null,null,null,null,null,null,null,null,null,null,null,null,null,null,null,null,null,null,null,null,null,null,null,null,null,null,null,null,null,null,null,null,null,null,null,null,null,null,null,null,null,null,null,null,null,null,null,null,null,null,null,null,null,null,null,null,null,null,null,null,null,null,null,null,null,null,null,null,null,null,null,null,null,null,null,null,null,null,null,null,null,null,null,null,null,1.2,0,0.28999999999999998,0.31,0,0.33,0.34,0.36,0.39]
[null,null,null,null,null,null,null,null,null,null,null,null,null,null,null,null,null,null,null,null,null,null,null,null,null,null,null,null,null,null,null,null,null,null,null,null,null,null,null,null,null,null,null,null,null,null,null,null,null,null,null,null,null,null,null,null,null,null,null,null,null,null,null,null,null,null,null,null,null,null,null,null,null,null,null,null,null,null,null,null,null,null,null,null,null,null,null,null,null,null,null,null,null,null,null,null,null,1.3,0,0.31,0.33,0,0.36,0.35,0.38,0.41]
[null,null,null,null,null,null,null,null,null,null,null,null,null,null,null,null,null,null,null,null,null,null,null,null,null,null,null,null,null,null,null,null,null,null,null,null,null,null,null,null,null,null,null,null,null,null,null,null,null,null,null,null,null,null,null,null,null,null,null,null,null,null,null,null,null,null,null,null,null,null,null,null,null,null,null,null,null,null,null,null,null,null,null,null,null,null,null,null,null,null,null,null,null,null,null,null,null,1.4,0,0.32,0.34,0,0.38,0.36,0.4,0.43]
[null,null,null,null,null,null,null,null,null,null,null,null,null,null,null,null,null,null,null,null,null,null,null,null,null,null,null,null,null,null,null,null,null,null,null,null,null,null,null,null,null,null,null,null,null,null,null,null,null,null,null,null,null,null,null,null,null,null,null,null,null,null,null,null,null,null,null,null,null,null,null,null,null,null,null,null,null,null,null,null,null,null,null,null,null,null,null,null,null,null,null,null,null,null,null,null,null,1.5,0,0.34,0.35,0,0.4,0.37,0.42,0.45]
[null,null,null,null,null,null,null,null,null,null,null,null,null,null,null,null,null,null,null,null,null,null,null,null,null,null,null,null,null,null,null,null,null,null,null,null,null,null,null,null,null,null,null,null,null,null,null,null,null,null,null,null,null,null,null,null,null,null,null,null,null,null,null,null,null,null,null,null,null,null,null,null,null,null,null,null,null,null,null,null,null,null,null,null,null,null,null,null,null,null,null,null,null,null,null,null,null,1.75,null,0.36,0.38,null,0.44,0.39,0.45,0.48]
[null,null,null,null,null,null,null,null,null,null,null,null,null,null,null,null,null,null,null,null,null,null,null,null,null,null,null,null,null,null,null,null,null,null,null,null,null,null,null,null,null,null,null,null,null,null,null,null,null,null,null,null,null,null,null,null,null,null,null,null,null,null,null,null,null,null,null,null,null,null,null,null,null,null,null,null,null,null,null,null,null,null,null,null,null,null,null,null,null,null,null,null,null,null,null,null,null,2,0,0.38,0.4,0,0.47,0.41,0.48,0.5]
[null,null,null,null,null,null,null,null,null,null,null,null,null,null,null,null,null,null,null,null,null,null,null,null,null,null,null,null,null,null,null,null,null,null,null,null,null,null,null,null,null,null,null,null,null,null,null,null,null,null,null,null,null,null,null,null,null,null,null,null,null,null,null,null,null,null,null,null,null,null,null,null,null,null,null,null,null,null,null,null,null,null,null,null,null,null,null,null,null,null,null,null,null,null,null,null,null,"Bvy",0.24,0,0.26,0.26,0,0.28999999999999998,0.3,0.33]
[null,null,null,null,null,null,null,null,null,null,null,null,null,null,null,null,null,null,null,null,null,null,null,null,null,null,null,null,null,null,null,null,null,null,null,null,null,null,null,null,null,null,null,null,null,null,null,null,null,null,null,null,null,null,null,null,null,null,null,null,null,null,null,null,null,null,null,null,null,null,null,null,null,null,null,null,null,null,null,null,null,null,null,null,null,null,null,null,null,null,null,null,null,null,null,null,null,null,2,3,4,5,6,7,8,9]
[null,null,null,null,null,null,null,null,null,null,null,null,null,null,null,null,null,null,null,null,null,null,null,null,null,null,null,null,null,null,null,null,null,null,null,null,null,null,null,null,null,null,null,null,null,null,null,null,null,null,null,null,null,null,null,null,null,null,null,null,null,null,null,null,null,null,null,null,null,null,null,null,null,null,null,null,null,null,null,null,null,null,null,null,null,null,null,null,null,null,null,null,null,null,null,null,null,{"$f":"CT111","v":2},0,0.38,0.4,0,0.47,0.41,0.48,{"$f":"DB111","v":0.5}]
[null,null,null,null,null,null,null,null,null,null,null,null,null,null,null,null,null,null,null,null,null,null,null,null,null,null,null,null,null,null,null,null,null,null,null,null,null,null,null,null,null,null,null,null,null,null,null,null,null,null,null,null,null,null,null,null,null,null,null,null,null,null,null,null,null,null,null,null,null,null,null,null,null,null,null,null,null,null,null,null,null,null,null,null,null,null,null,null,null,null,null,null,null,null,null,null,null,{"$f":"CT110","v":1.75},0,0.36,0.38,0,0.44,0.39,0.45,{"$f":"DB110","v":0.48}]
[null,null,null,null,null,null,null,null,null,null,null,null,null,null,null,null,null,null,null,null,null,null,null,null,null,null,null,null,null,null,null,null,null,null,null,null,null,null,null,null,null,null,null,null,null,null,null,null,null,null,null,null,null,null,null,null,null,null,null,null,null,null,null,null,null,null,null,null,null,null,null,null,null,null,null,null,null,null,null,null,null,null,null,null,null,null,null,null,null,null,null,null,null,null,null,null,null,{"$f":"CT109","v":1.5},0,0.34,0.35,0,0.4,0.37,0.42,{"$f":"DB109","v":0.45}]
[null,null,null,null,null,null,null,null,null,null,null,null,null,null,null,null,null,null,null,null,null,null,null,null,null,null,null,null,null,null,null,null,null,null,null,null,null,null,null,null,null,null,null,null,null,null,null,null,null,null,null,null,null,null,null,null,null,null,null,null,null,null,null,null,null,null,null,null,null,null,null,null,null,null,null,null,null,null,null,null,null,null,null,null,null,null,null,null,null,null,null,null,null,null,null,null,null,{"$f":"CT108","v":1.4},0,0.32,0.34,0,0.38,0.36,0.4,{"$f":"DB108","v":0.43}]
[null,null,null,null,null,null,null,null,null,null,null,null,null,null,null,null,null,null,null,null,null,null,null,null,null,null,null,null,null,null,null,null,null,null,null,null,null,null,null,null,null,null,null,null,null,null,null,null,null,null,null,null,null,null,null,null,null,null,null,null,null,null,null,null,null,null,null,null,null,null,null,null,null,null,null,null,null,null,null,null,null,null,null,null,null,null,null,null,null,null,null,null,null,null,null,null,null,{"$f":"CT107","v":1.3},0,0.31,0.33,0,0.36,0.35,0.38,{"$f":"DB107","v":0.41}]
[null,null,null,null,null,null,null,null,null,null,null,null,null,null,null,null,null,null,null,null,null,null,null,null,null,null,null,null,null,null,null,null,null,null,null,null,null,null,null,null,null,null,null,null,null,null,null,null,null,null,null,null,null,null,null,null,null,null,null,null,null,null,null,null,null,null,null,null,null,null,null,null,null,null,null,null,null,null,null,null,null,null,null,null,null,null,null,null,null,null,null,null,null,null,null,null,null,{"$f":"CT106","v":1.2},0,0.28999999999999998,0.31,0,0.33,0.34,0.36,{"$f":"DB106","v":0.39}]
[null,null,null,null,null,null,null,null,null,null,null,null,null,null,null,null,null,null,null,null,null,null,null,null,null,null,null,null,null,null,null,null,null,null,null,null,null,null,null,null,null,null,null,null,null,null,null,null,null,null,null,null,null,null,null,null,null,null,null,null,null,null,null,null,null,null,null,null,null,null,null,null,null,null,null,null,null,null,null,null,null,null,null,null,null,null,null,null,null,null,null,null,null,null,null,null,null,{"$f":"CT105","v":1.1000000000000001},0,0.27,0.28999999999999998,0,0.3,0.32,0.33,{"$f":"DB105","v":0.36}]
[null,null,null,null,null,null,null,null,null,null,null,null,null,null,null,null,null,null,null,null,null,null,null,null,null,null,null,null,null,null,null,null,null,null,null,null,null,null,null,null,null,null,null,null,null,null,null,null,null,null,null,null,null,null,null,null,null,null,null,null,null,null,null,null,null,null,null,null,null,null,null,null,null,null,null,null,null,null,null,null,null,null,null,null,null,null,null,null,null,null,null,null,null,null,null,null,null,{"$f":"CT104","v":1},0,0.24,0.26,0,0.26,0.3,0.28999999999999998,{"$f":"DB104","v":0.33}]
[null,null,null,null,null,null,null,null,null,null,null,null,null,null,null,null,null,null,null,null,null,null,null,null,null,null,null,null,null,null,null,null,null,null,null,null,null,null,null,null,null,null,null,null,null,null,null,null,null,null,null,null,null,null,null,null,null,null,null,null,null,null,null,null,null,null,null,null,null,null,null,null,null,null,null,null,null,null,null,null,null,null,null,null,null,null,null,null,null,null,null,null,null,null,null,null,null,{"$f":"CT112","v":"Bvy"},0.24,0,0.26,0.26,0,0.28999999999999998,0.3,{"$f":"DB112","v":0.33}]